Cogmind - Beta 14 @@@ ROGUE MODE // 2024.08.15 @ 20:32:00 Player: Zeia Result: Destroyed self with Grenade Launcher Performance ------------- Evolutions (0) 0 Regions Visited (2) 400 Robots Destroyed (21) 105 Value Destroyed (532) 532 Prototype IDs (0) 0 Alien Tech Used (0) 0 Bonus (0) 0 TOTAL SCORE: 1037 Bonus ------- None Cogmind --------- Core Integrity 0/250 Matter 221/300 Energy 100/100 System Corruption 0% Temperature Cool (0) Movement Rolling (100) Location -10/Subcaves Parts ------- > --- POWER (1) -------- (None) > --- PROPULSION (2) --- Compact Wheel > --- UTILITY (2) ------ Small Storage Unit > --- WEAPON (2) ------- Grenade Launcher > --- INVENTORY (8) ---- Light Ion Engine Subdweller Power Source Light Treads Aluminum Leg Riot Gun Beam Cannon Heavy Assault Rifle Peak State ------------ > --- POWER ------------ Subdweller Power Source > --- PROPULSION ------- Wheel Compact Wheel > --- UTILITY ---------- Small Storage Unit > --- WEAPON ----------- Heavy Assault Rifle Barrage Gun > --- INVENTORY -------- Light Ion Engine Subdweller Power Source Light Treads Aluminum Leg Riot Gun Beam Cannon Heavy Assault Rifle Grenade Launcher [Rating: 11] Favorites ----------- Power Ion Engine Engine Ion Engine Propulsion Light Treads Treads Light Treads Wheel Compact Wheel Utility Small Storage Unit Device Seismic Detector Storage Small Storage Unit Weapon Heavy Assault Rifle Energy Gun Medium Laser Ballistic Gun Heavy Assault Rifle Launcher Grenade Launcher Build | -11 -10 -10 ------- Run | Yrd Mat Sub Slots Evolved . | . . . Power . | . . . Propulsion . | . . . Utility . | . . . Weapon . | . . . Parts Attached 24 | 8 2 14 Power 3 | 1 . 2 Engine 3 | 1 . 2 Core . | . . . Reactor . | . . . Propulsion 4 | 2 . 2 Treads 2 | 2 . . Leg . | . . . Wheel 2 | . . 2 Hover . | . . . Flight . | . . . Utility 2 | 2 . . Device 1 | 1 . . Storage 1 | 1 . . Processor . | . . . Hackware . | . . . Protection . | . . . Artifact . | . . . Weapon 15 | 3 2 10 Energy Gun 2 | 2 . . Energy Cannon . | . . . Ballistic Gun 9 | 1 2 6 Ballistic Cannon . | . . . Launcher 4 | . . 4 Special Weapon . | . . . Impact Weapon . | . . . Slashing Weapon . | . . . Piercing Weapon . | . . . Special Melee Weapon . | . . . Unidentified Prototypes . | . . . Parts Lost 9 | . . 9 Power 2 | . . 2 Propulsion 2 | . . 2 Utility 1 | . . 1 Weapon 4 | . . 4 Highest Loss Streak 5 | . . 5 To Critical Strikes 2 | . . 2 Average Slot Usage (%) 93 | . 100 88 Engine 13 | . 14 13 Treads 17 | . 28 8 Wheel 10 | . . 18 Device 8 | . 14 4 Storage 14 | . 14 14 Ballistic Gun 27 | . 27 27 Peak Build Rating 11 | 7 10 11 Average Rating 9 | 5 9 10 On Entrance 5 | . 7 10 Naked Turns . | . . . Heaviest Build 17 | 15 17 17 Greatest Support 40 | 40 40 40 Greatest Overweight (x) . | . . . Average Overweight (x) . | . . . Largest Inventory Capacity 8 | 8 8 8 Average Capacity 7 | 7 8 8 Most Carried 8 | 7 8 8 Average Carried 7 | 4 7 7 Final Capacity 8 | 8 8 8 Final Carried 8 | 7 8 7 Class Distribution -------------------- 100% | Mutant Dominant Class ---------------- Mutant | -10/Materials Mutant | -10/Subcaves Resources | -11 -10 -10 ----------- Run | Yrd Mat Sub Matter Collected 718 | 295 61 362 Remotely . | . . . Salvage Created 625 | 76 133 416 Parts 52 | 6 18 28 Haulers Intercepted . | . . . Recyclers Shooed 1 | 1 . . Parts Field Recycled . | . . . Retrieved Matter . | . . . Parts Self-Destructed 7 | . . 7 Prevented . | . . . Kills | -11 -10 -10 ------- Run | Yrd Mat Sub Combat Hostiles Destroyed 19 | . 7 12 Guns 14 | . 7 7 AOE 5 | . . 5 Classes Destroyed 6 | 2 2 2 Tunneler 1 | 1 . . Recycler 1 | 1 . . Swarmer 8 | . 6 2 Grunt 1 | . 1 . Sentry 1 | . . 1 Subdweller 9 | . . 9 Best Kill Streak 3 | 1 3 2 Combat Bots Only 3 | . 3 2 Max Kills in Single Turn 1 | 1 1 1 Gunslinging . | . . . Exploded 1 | . . 1 Melee . | . . . Uniques/NPCs Destroyed . | . . . Combat | -11 -10 -10 -------- Run | Yrd Mat Sub Hostile Shots Fired 105 | . 42 63 Missed 21 | . 7 14 Damage Taken 1439 | . 305 1134 Core 254 | . 39 215 Absorbed by Shields . | . . . Core Remaining (%) 100 | 100 . . Volleys Fired 63 | 8 16 39 Largest 2 | 2 2 2 Hottest 70 | 70 46 53 Shots Fired 118 | 16 32 70 Gun 109 | 16 32 61 Cannon . | . . . Launcher 9 | . . 9 Special . | . . . Kinetic 101 | 8 32 61 Thermal 8 | 8 . . Explosive 9 | . . 9 Electromagnetic . | . . . Robot Hit Streak 12 | 3 5 12 Robot Miss Streak 7 | 1 7 1 Penetration Max . | . . . Secondary Targets 1 | . . 1 Max Gunslinging Chain 1 | . . 1 Shots Hit Robots 78 | 10 12 56 Core Hits 32 | 3 7 22 Critical Kills 1 | . . 1 Critical Parts Destroyed . | . . . Critical Strikes 1 | . . 1 Destroy 1 | . . 1 Melee Attacks . | . . . Impact . | . . . Slashing . | . . . Piercing . | . . . Sneak Attacks . | . . . Combat Hostiles . | . . . Follow-up Attacks . | . . . Damage Inflicted 1707 | 120 179 1408 Guns 1032 | 120 176 736 Cannons . | . . . Explosions 672 | . . 672 Melee . | . . . Ramming 3 | . 3 . Kinetic 995 | 83 176 736 Thermal 37 | 37 . . Explosive 672 | . . 672 Electromagnetic . | . . . Impact . | . . . Slashing . | . . . Piercing . | . . . Highest Corruption . | . . . Average Corruption . | . . . Corruption Purged . | . . . Corruption Blocked . | . . . Overload Shots . | . . . Overflow Damage 30 | . . 30 Projectiles . | . . . Explosions 30 | . . 30 Melee . | . . . Knockbacks . | . . . Impact . | . . . Kinetic . | . . . Secondary . | . . . Self-Inflicted Damage 144 | . . 144 Shots 6 | . . 6 Rammed 1 | . 1 . Targets Rammed 1 | . 1 . Kicked . | . . . Crushed . | . . . Highest Temperature 45 | 45 1 . Average Temperature 17 | 18 1 . Received Heat Transfer 213 | . 36 177 Siege Activations . | . . . Robots Corrupted . | . . . Combat Hostiles . | . . . Parts Fried . | . . . Impact Corruptions . | . . . Robots Melted . | . . . Combat Hostiles . | . . . Parts Melted . | . . . Heat Transferred 111 | 111 . . Parts Sabotaged . | . . . Parts Stolen . | . . . Parts Stripped . | . . . Power Chain Reactions . | . . . Alert | -11 -10 -10 ------- Run | Yrd Mat Sub Peak Influence 246 | 10 246 . Initial 6 | . 6 . Average 24 | 4 27 . Maximum Alert Level 1 | . 1 . Low Security (%) 97 | 100 97 . Level 1 2 | . 2 . Level 2 . | . . . Level 3 . | . . . Level 4 . | . . . Level 5 . | . . . High Security . | . . . Max Security . | . . . Squads Dispatched 1 | . 1 . Investigation . | . . . Extermination . | . . . Reinforcement 1 | . 1 . Assault . | . . . Garrison . | . . . Intercept . | . . . Searches Triggered . | . . . Construction Impeded . | . . . Haulers Reinforced . | . . . Active Scanning Responses . | . . . Cargo Convoy Interrupts . | . . . Stealth | -11 -10 -10 --------- Run | Yrd Mat Sub Distress Signals . | . . . Communications Jammed . | . . . Distress Signals . | . . . Times Spotted 23 | . 11 12 Peak Tracking Total 4 | . 4 3 Tactical Retreats 2 | . 2 . Traps | -11 -10 -10 ------- Run | Yrd Mat Sub Traps Triggered . | . . . Indirectly . | . . . Trap Hack Attempts . | . . . Triggered . | . . . Disarmed . | . . . Reprogrammed . | . . . Reused . | . . . Traps Extracted . | . . . Installed . | . . . Triggered 1 | . . 1 Machines | -11 -10 -10 ---------- Run | Yrd Mat Sub Machines Disabled . | . . . Max in Single Turn . | . . . Machines Repaired . | . . . Machines Dismantled . | . . . Machines Sabotaged . | . . . Overloaded Fab Kills . | . . . Hacking | -11 -10 -10 --------- Run | Yrd Mat Sub Machines Accessed 2 | . 2 . Terminals 2 | . 2 . Fabricators . | . . . Repair Stations . | . . . Recycling Units . | . . . Scanalyzers . | . . . Garrison Access . | . . . Total Hacks 3 | . 3 . Successful . | . . . Failed 3 | . 3 . Catastrophic 2 | . 2 . Database Lockouts . | . . . Manual 3 | . 3 . Terminals 3 | . 3 . Fabricators . | . . . Repair Stations . | . . . Recycling Units . | . . . Scanalyzers . | . . . Garrison Access . | . . . Terminal Hacks . | . . . Fabricator Hacks . | . . . Repair Station Hacks . | . . . Recycling Unit Hacks . | . . . Scanalyzer . | . . . Garrison Access Hacks . | . . . Unauthorized Hacks . | . . . Terminals . | . . . Fabricators . | . . . Repair Stations . | . . . Recycling Units . | . . . Scanalyzers . | . . . Garrison Access . | . . . Data Cores Recovered . | . . . Used . | . . . Hacking Detections 2 | . 2 . Full Trace Events . | . . . Feedback Events . | . . . Feedback Blocked . | . . . Robot Schematics Acquired . | . . . Robots Built . | . . . Authchips . | . . . Time . | . . . Total Robot Build Rating . | . . . Part Schematics Acquired . | . . . Parts Built . | . . . Authchips . | . . . Time . | . . . Total Part Build Rating . | . . . Parts Repaired . | . . . Time . | . . . Parts Recycled . | . . . Recycled Matter . | . . . Retrieved Matter . | . . . Retrieved Components . | . . . Parts Scanalyzed . | . . . Part Schematics Acquired . | . . . Parts Damaged . | . . . Bothacking | -11 -10 -10 ------------ Run | Yrd Mat Sub Used RIF Installer . | . . . Robots Hacked . | . . . Non-combat . | . . . Combat . | . . . Robot Hacks Applied . | . . . Relay Couplers Released . | . . . Fabnet Peak Effective % . | . . . Robots Rewired . | . . . Allies Hacked . | . . . Hacks Repelled . | . . . Allies | -11 -10 -10 -------- Run | Yrd Mat Sub Total Allies . | . . . Largest Group . | . . . Highest-Rated Group . | . . . Highest-Rated Ally . | . . . Total Orders . | . . . Ally Attacks . | . . . Total Damage . | . . . Kills . | . . . Allies Corrupted . | . . . Allies Melted . | . . . Intel | -11 -10 -10 ------- Run | Yrd Mat Sub Robot Analysis Total . | . . . Derelict Logs Recovered 1 | . . 1 Drone Launches . | . . . Drone Recoveries . | . . . Exploration | -11 -10 -10 ------------- Run | Yrd Mat Sub Turns Passed 1864 | 145 805 914 Spaces Moved 943 | 67 170 706 Core 4 | 4 . . Treads 352 | 63 170 119 Legs . | . . . Wheels 587 | . . 587 Hover . | . . . Flight . | . . . Fastest Speed 50 | 50 160 90 Average Speed 115 | 153 160 101 Slowest Speed 160 | 160 160 160 Overloaded Moves . | . . . Propulsion Burnouts . | . . . Robots Hopped . | . . . Cave-ins Triggered . | . . . Exploration Rate (%) 24 | 4 26 42 Regions Visited 2 Branch Regions 1 Pre-discovered Areas . | . . . Known Exits Taken . | . . . Unknown Exits Taken 2 | 1 1 . Scrap Searched 2 | . . 2 Spaces Dug . | . . . Terrain Destroyed 42 | . . 42 Melee . | . . . Projectile . | . . . AOE 42 | . . 42 Terrain Rammed . | . . . Walls Destroyed . | . . . Machines Disabled . | . . . Actions | -11 -10 -10 --------- Run | Yrd Mat Sub Total 1595 | 90 673 832 Wait 542 | . 474 68 Move 941 | 66 169 706 Hop . | . . . Pick Up 16 | 8 5 3 Fast Attach 8 | 6 1 1 Attach 5 | 1 . 4 Detach . | . . . Swap 11 | 1 1 9 Drop 8 | . 6 2 Fire 63 | 8 16 39 Melee . | . . . Ram . | . . . Kick . | . . . Crush 1 | . 1 . Escape Stasis . | . . . Rewire . | . . . Trap . | . . . Miscellaneous . | . . . Route ------- -11/Scrapyard -10/Materials (discovered 3 exits: [*Min x2] / [*Sub]) -10/Subcaves (discovered 2 exits: [*Mat x2]) History --------- Turn | Location | Event 11 | -11/Scrapyard | Discovered new exit (range 16) 146 | -11/Scrapyard | Entered Materials 156 | -10/Materials | Discovered new exit (range 15) 271 | -10/Materials | Discovered new exit (range 15) 307 | -10/Materials | Build established: Mutant 774 | -10/Materials | Discovered new exit (range 8) 951 | -10/Materials | Entered Subcaves 1024 | -10/Subcaves | Shifting Twisted Machinery released Piercing Trap 1024 | -10/Subcaves | Shifting Twisted Machinery released Sub. Monowheel 1231 | -10/Subcaves | Core integrity fell below 50% 1263 | -10/Subcaves | Lost 5 parts (1p1n1u2w) 1396 | -10/Subcaves | Shifting Twisted Machinery released Spk. Treads 1396 | -10/Subcaves | Discovered new exit (range 13) 1397 | -10/Subcaves | Shifting Twisted Machinery released Riot Gun 1479 | -10/Subcaves | Discovered new exit (range 10) 1540 | -10/Subcaves | Learned location of 1 exit from Materials 1862 | -10/Subcaves | Core integrity fell below 20% 1865 | -10/Subcaves | Destroyed self with Grenade Launcher Last Messages --------------- 01585_ Acquired 35 matter. 01597_ Searching scrap... 01597_ Found Sub. Laser. 01597_ Found 59 Matter. 01741_ ET-9OD(R) destroyed. 01744_ Acquired 21 matter. 01746_ Dropped Sub. Power Source. 01748_ Acquired 10 matter. 01769_ 0E-8TJ(u) tweaks Twisted Machinery. ST-LJT(R) emerges from concealment. 01851_ Wheel destroyed. 01856_ MK-5L1(R) destroyed. 01856_ Switching to secondary target: WQ-RWH(R). 01858_ Hvy. Assault Rifle destroyed. 01858_ WQ-RWH(R) affixes Scrap Shield Fragment to Scrap Shield. 01860_ Sub. Power Source destroyed. 01862_ Critical hit (Destroy). 01862_ Barrage Gun destroyed. 01863_ WQ-RWH(R) destroyed. Map ----- +----------------------------------------------------+ | ###????????????????????????????????????????????? | | #??????????????????????????????????????????????? | | ####???????????????????????????????????????????? | | #???????????????????????????????????????????? | | #???????????????????????????????????????????? | | ####???????????????????????????????????????????? | | #??????????????????????????????????????????????? | | ##?#####???????????????????????????????????????? | | ### ##??????????????????????????????????????? | | #??????????????????????????????????????? | | #???????????????????????????????????????? | | ##???????????????????????????????????????? | | ##????????????????????????????????????????? | | ## #?????????????????????????????????????????? | | ### ###???????????????????????????????????????? | | #?## #???????????????????????????????????????? | | ###?## ##???????????????????????????????????????? | | #???# ####?????####????????????????????????????? | | #??## ####### ####?????????????????????????? | | ???# ##########????????????????? | | ??## ## ##???????????????? | | ### ## #???????????????? | | # #???????????????? | | #???????????????? | | R ###???????????????? | | # ##### %&@ #####?????????????????? | | ## ##???# ! ##?????????????????????? | | ?## #????# ??????????????????????? | | ??# #????### ??????????????????????? | | ??### ??????### #####?????????????????????? | | ????## ????????## #?????????????????????????? | | ?????#### ##????????# ????????????????????????? | | ????????###????????? #???????????????????????? | | ??????????????????? #???????????????????????? | | ?????????????????? ???????????????????????? | | ?????????????????? ??????????????????????? | | ????????????????? ### ?????????????????????? | | ???????????????? #??? ?????????????????????? | | ?????????????????? #???? ????????????????????? | | ???????????????????#?????? ???????????????????? | | ??????????????????????????? ?????????????????????? | | ?????????????????????????????????????????????????? | | ?????????????????????????????????????????????????? | | ?????????????????????????????????????????????????? | | ?????????????????????????????????????????????????? | | ?????????????????????????????????????????????????? | | ?????????????????????????????????????????????????? | | ?????????????????????????????????????????????????? | | ?????????????????????????????????????????????????? | | ?????????????????????????????????????????????????? | +----------------------------------------------------+ Best States ------------- Heat Dissipation 25 Energy Generation 15 Energy Capacity 250 Matter Stores 300 Matter Capacity 300 Sight Range 16 Terrain Scan Density 10 Evasion (%) 42 Recoil Reduction 2 Item Schematics ----------------- None Robot Schematics ------------------ None Fabricated ------------ Nothing Alien Tech Used ----------------- None Achievements -------------- None Challenges ------------ None Game ------ Seed SeismicOmegaChronowheel Manual? 0 Play Time 00:20:21 Cumulative 40.1 hours Start 2024.08.15 @ 18:51:46 End 2024.08.15 @ 20:32:00 Sessions 4 Manual Loads 0 Difficulty Rogue Special Mode None Game No. 36 Rogue 36 Adventurer 0 Explorer 0 Win Type - Total 0 Types 0/0/0/0/0/0/0/0/0 Lore% 35 Gallery% 34 Achievement% 28 Wizard Run 0 Options --------- Layout 1 ASCII 0 Keyboard 1 Movement Vi Keybinds 0 Fullscreen 0 Font 20/SmallcapsGlow Map View 64x42 Zoom Use 0% Tactical HUD 1 Map Filters NONE Filters NONE Steam 1 RUN: c72e7438-58bd-442a-b3ba-70862be53db7